fUSD/lending_fUSD_20240920
["ID","MTS","AMOUNT","RATE_DAILY","PERIOD"]
[338662964,1726858250022,-151.0,0.000135,2]
[338662965,1726858250031,-151.0,0.000135,2]
[338662966,1726858250040,-578.06278,0.000135,2]
[338662967,1726858250049,-151.0,0.000135,2]
[338662968,1726858250058,-578.06278,0.000135,2]
[338662969,1726858250067,-5000.65852,0.000135,2]
[338662970,1726858250077,-584.43903366,0.000135,2]
[338662971,1726858250086,-350.0,0.000136,3]
[338662972,1726858250095,-321.95,0.000136,3]
[338662973,1726858250104,-10457.3500821,0.00013603,2]
[338662974,1726858250113,-152.0,0.00013654,5]
[338662975,1726858250122,-3567.9,0.00013661,7]
[338662976,1726858250131,-3567.9,0.00013661,7]
[338662977,1726858250140,-3567.9,0.00013661,7]
[338662978,1726858250150,-3567.9,0.00013661,7]
[338662979,1726858250159,-151.0,0.00013698,2]
[338662980,1726858250168,-151.0,0.00013698,2]
[338662981,1726858250177,-151.0,0.00013698,2]
[338662982,1726858250187,-151.0,0.00013698,2]
[338662983,1726858250197,-1326.57,0.00013698,2]
[338662984,1726858250206,-1326.57,0.00013698,2]
[338662985,1726858250215,-1326.57,0.00013698,2]
[338662986,1726858250224,-1326.57,0.00013698,2]
[338662987,1726858250234,-1326.57,0.00013698,2]
[338662988,1726858250243,-1326.57,0.00013698,2]
[338662989,1726858250252,-1326.57,0.00013698,2]
[338662990,1726858250262,-1326.57,0.00013698,2]
[338662991,1726858250271,-1326.57,0.00013698,2]
[338662992,1726858250280,-1326.57,0.00013698,2]
[338662993,1726858250289,-1326.57,0.00013698,2]
[338662994,1726858250298,-1326.57,0.00013698,2]
[338662995,1726858250309,-1326.57,0.00013698,2]
[338662996,1726858250318,-1326.57,0.00013698,2]
[338662997,1726858250331,-1326.57,0.00013698,2]
[338662998,1726858250340,-1326.57,0.00013698,2]
[338662999,1726858250349,-1326.57,0.00013698,2]
[338663000,1726858250358,-1326.57,0.00013698,2]
[338663001,1726858250368,-1326.57,0.00013698,2]
[338663002,1726858250377,-1326.57,0.00013698,2]
[338663003,1726858250387,-1326.57,0.00013698,2]
[338663004,1726858250397,-1326.57,0.00013698,2]
[338663005,1726858250406,-1326.57,0.00013698,2]
[338663006,1726858250416,-1326.66096021,0.00013698,2]
[338663007,1726858250425,-1043.38,0.00013698,2]
[338663008,1726858250434,-1043.38,0.00013698,2]
[338663009,1726858250445,-1043.38,0.00013698,2]
[338663010,1726858250454,-1043.38,0.00013698,2]
[338663011,1726858250465,-1043.38,0.00013698,2]
[338663012,1726858250476,-1043.38,0.00013698,2]
[338663013,1726858250486,-1043.38,0.00013698,2]
[338663014,1726858250495,-1043.38,0.00013698,2]
[338663015,1726858250504,-1043.38,0.00013698,2]
[338663016,1726858250513,-1043.38,0.00013698,2]
[338663017,1726858250523,-1043.38,0.00013698,2]
[338663018,1726858250531,-1043.38,0.00013698,2]
[338663019,1726858250541,-1043.38,0.00013698,2]
[338663020,1726858250550,-1043.38,0.00013698,2]
[338663021,1726858250560,-1043.38,0.00013698,2]
[338663022,1726858250569,-1043.38,0.00013698,2]
[338663023,1726858250578,-1043.38,0.00013698,2]
[338663024,1726858250588,-1043.38,0.00013698,2]
[338663025,1726858250598,-1043.38,0.00013698,2]
[338663026,1726858250608,-310.13362089,0.00013698,2]
[338663027,1726858250804,-256.424324,0.00013698,2]
[338663028,1726858250816,-476.82205511,0.00013698,2]
[338663029,1726858250825,-1043.38,0.00013698,2]
[338663030,1726858250834,-825.97959632,0.00013698,2]
[338663031,1726858250916,-211.4,0.00013,2]
[338663032,1726858250925,-448.08654881,0.00013,2]
[338663033,1726858250936,-14632.84345119,0.00013,2]
[338663034,1726858250947,-211.4,0.00013074,2]
[338663035,1726858250957,-379.18774097,0.000133,2]
[338663036,1726858269339,325.4079,0.00011995,2]
[338663037,1726858295014,500.0,0.00011164,2]
[338663038,1726858299908,500.0,0.00011164,2]
[338663039,1726858356411,324.49,0.00010758,2]
[338663040,1726858358422,9230.08468998,0.00012,15]
[338663042,1726858985301,326.71,0.00010342,2]
[338663043,1726859198681,169.45,0.00010959,2]
[338663052,1726859431633,-382.62401839,0.00012151,2]
[338663053,1726859431646,-250.0,0.00012246,2]
[338663054,1726859431657,-228.77,0.00012251,2]
[338663055,1726859431667,-600.0,0.00012252,2]
[338663056,1726859431677,-260.76,0.00012256,2]
[338663057,1726859431687,-400.0,0.00012274,2]
[338663058,1726859431698,-171.92,0.00012457,2]
[338663059,1726859431709,-326.71,0.00012606,2]
[338663060,1726859431724,-169.22,0.00012634,2]
[338663061,1726859431734,-150.0,0.00012697,2]
[338663062,1726859431754,-500.0,0.00012698,2]
[338663063,1726859431767,-500.0,0.00012698,2]
[338663064,1726859431779,-500.0,0.00012698,2]
[338663065,1726859431790,-500.0,0.00012698,2]
[338663066,1726859431802,-500.0,0.00012698,2]
[338663067,1726859431814,-500.0,0.00012698,2]
[338663068,1726859431825,-500.0,0.00012698,2]
[338663069,1726859431836,-500.0,0.00012698,2]
[338663070,1726859431848,-500.0,0.00012698,2]
[338663071,1726859431859,-500.0,0.00012698,2]
[338663072,1726859431871,-500.0,0.00012698,2]
[338663073,1726859431883,-500.0,0.00012698,2]
[338663074,1726859431895,-500.0,0.00012698,2]
[338663075,1726859431906,-500.0,0.00012698,2]
[338663076,1726859431917,-500.0,0.00012698,2]
[338663077,1726859431928,-500.0,0.00012698,2]
[338663078,1726859431938,-500.0,0.00012698,2]
[338663079,1726859431949,-500.0,0.00012698,2]
[338663080,1726859431960,-500.0,0.00012698,2]
[338663081,1726859431971,-500.0,0.00012698,2]
[338663082,1726859431982,-500.0,0.00012698,2]
[338663084,1726859431992,-500.0,0.00012698,2]
[338663086,1726859432003,-500.0,0.00012698,2]
[338663088,1726859432014,-500.0,0.00012698,2]
[338663091,1726859432025,-500.0,0.00012698,2]
[338663094,1726859432035,-500.0,0.00012698,2]
[338663096,1726859432046,-500.0,0.00012698,2]
[338663098,1726859432057,-500.0,0.00012698,2]
[338663100,1726859432068,-403.88,0.00012698,2]
[338663101,1726859432078,-500.0,0.00012698,2]
[338663102,1726859432089,-646.04,0.00012698,2]
[338663103,1726859432099,-150.0,0.00012699,2]
[338663104,1726859432111,-150.0,0.00012699,2]
[338663105,1726859432122,-150.0,0.00012699,2]
[338663106,1726859432133,-150.0,0.00012699,2]
[338663107,1726859432146,-796.0,0.0001285,2]
[338663108,1726859432156,-2351.81,0.0001285,2]
[338663109,1726859432167,-1147.0,0.00012866,2]
[338663110,1726859432177,-13489.0,0.00012866,2]
[338663111,1726859432188,-5866.0,0.00012866,2]
[338663112,1726859432200,-150.0,0.00012866,2]
[338663113,1726859432211,-1080.0,0.00012866,2]
[338663114,1726859432222,-2410.905,0.00012886,2]
[338663115,1726859432232,-409.01,0.00012886,2]
[338663116,1726859432243,-499.99,0.00012886,2]
[338663117,1726859432253,-154.28,0.000129,2]
[338663118,1726859432264,-150.0,0.00012934,2]
[338663119,1726859432275,-161.23962938,0.00012967,2]
[338663120,1726859432286,-653.51,0.00012986,2]
[338663121,1726859432296,-166.906,0.00012986,2]
[338663122,1726859432306,-150.93,0.00012986,2]
[338663123,1726859432316,-152.48,0.00012986,2]
[338663124,1726859432328,-1000.0,0.00012986,2]
[338663125,1726859432340,-2531.88,0.0001299,2]
[338663126,1726859432351,-2000.0,0.00012999,2]
[338663127,1726859432361,-211.4,0.00013,2]
[338663128,1726859432372,-211.4,0.00013,2]
[338663129,1726859432383,-211.4,0.00013,2]
[338663130,1726859432395,-204.0,0.00013,2]
[338663131,1726859432405,-204.0,0.00013,2]
[338663132,1726859432417,-204.0,0.00013,2]
[338663133,1726859432429,-204.0,0.00013,2]
[338663134,1726859432441,-204.0,0.00013,2]
[338663135,1726859432453,-204.0,0.00013,2]
[338663136,1726859432466,-204.0,0.00013,2]
[338663137,1726859432478,-170.647,0.00013,2]
[338663138,1726859432489,-204.0,0.00013,2]
[338663139,1726859432500,-204.0,0.00013,2]
[338663140,1726859432512,-204.0,0.00013,2]
[338663141,1726859432523,-204.0,0.00013,2]
[338663142,1726859432533,-150.766,0.00013,2]
[338663143,1726859432545,-210.0,0.00013,2]
[338663144,1726859432557,-210.0,0.00013,2]
[338663145,1726859432567,-210.0,0.00013,2]
[338663146,1726859432579,-210.0,0.00013,2]
[338663147,1726859432590,-210.0,0.00013,2]
[338663148,1726859432601,-210.0,0.00013,2]
[338663149,1726859432610,-210.0,0.00013,2]
[338663150,1726859432620,-210.0,0.00013,2]
[338663151,1726859432631,-210.0,0.00013,2]
[338663152,1726859432641,-210.0,0.00013,2]
[338663153,1726859432651,-210.0,0.00013,2]
[338663154,1726859432664,-158.852,0.00013,2]
[338663155,1726859432674,-151.0,0.00013,2]
[338663156,1726859432685,-151.0,0.00013,2]
[338663157,1726859432696,-171.388868,0.00013,2]
[338663158,1726859432706,-158.852,0.00013,2]
[338663159,1726859432721,-158.852,0.00013,2]
[338663160,1726859432731,-158.852,0.00013,2]
[338663161,1726859432741,-158.852,0.00013,2]
[338663162,1726859432751,-158.852,0.00013,2]
[338663163,1726859432762,-151.0,0.00013,2]
[338663164,1726859432772,-151.0,0.00013,2]
[338663165,1726859432782,-151.0,0.00013,2]
[338663166,1726859432794,-1032.3,0.00013,2]
[338663167,1726859432805,-151.0,0.00013,2]
[338663168,1726859432816,-151.0,0.00013,2]
[338663169,1726859432828,-151.0,0.00013,2]
[338663170,1726859432838,-166.107646,0.00013,2]
[338663171,1726859432848,-199.0,0.00013,2]
[338663172,1726859432858,-303.54,0.00013,2]
[338663173,1726859432868,-999.84,0.00013,2]
[338663174,1726859432880,-500.0,0.0001304,2]
[338663175,1726859432892,-500.0,0.0001304,2]
[338663176,1726859432903,-448.0,0.0001307,2]
[338663177,1726859432912,-625.0,0.0001307,2]
[338663178,1726859432922,-1262.0,0.0001307,2]
[338663179,1726859432933,-1549.0,0.0001307,2]
[338663180,1726859432943,-150.0,0.0001307,2]
[338663181,1726859432954,-558.0,0.0001307,2]
[338663182,1726859432965,-809.0,0.0001307,2]
[338663183,1726859432976,-932.0,0.0001307,2]
[338663184,1726859432987,-553.0,0.0001307,2]
[338663185,1726859432997,-1903.0,0.0001307,2]
[338663186,1726859433008,-3346.0,0.0001307,2]
[338663187,1726859433018,-806.0,0.0001307,2]
[338663188,1726859433028,-1914.0,0.0001307,2]
[338663189,1726859433038,-248.0,0.0001307,2]
[338663190,1726859433048,-211.4,0.00013074,2]
[338663191,1726859433058,-158.852,0.00013074,2]
[338663192,1726859433068,-158.852,0.00013074,2]
[338663193,1726859433078,-151.0,0.00013074,2]
[338663194,1726859433088,-422.74,0.00013096,2]
[338663195,1726859433098,-753.33,0.00013096,2]
[338663196,1726859433108,-422.74,0.00013096,2]
[338663197,1726859433118,-753.33,0.00013096,2]
[338663198,1726859433128,-753.33,0.00013096,2]
[338663199,1726859433139,-421.66,0.00013096,2]
[338663200,1726859433149,-753.33,0.00013096,2]
[338663201,1726859433159,-753.33,0.00013096,2]
[338663202,1726859433169,-935.04,0.00013096,2]
[338663203,1726859433180,-152.72,0.000131,2]
[338663204,1726859433190,-265.46417,0.000131,2]
[338663205,1726859433200,-150.0,0.00013169,2]
[338663206,1726859433210,-500.0,0.00013242,2]
[338663207,1726859433220,-200.0,0.00013242,2]
[338663208,1726859433230,-514.8,0.000133,2]
[338663209,1726859433240,-359.0,0.000133,2]
[338663210,1726859433250,-978.0,0.000133,2]
[338663211,1726859433260,-227.0,0.000133,2]
[338663212,1726859433269,-15281.35,0.00013337,2]
[338663213,1726859433600,-428.14,0.0001337,2]
[338663214,1726859433619,-357.98,0.0001337,2]
[338663215,1726859433630,-150.0,0.0001337,2]
[338663216,1726859433642,-150.0,0.0001337,2]
[338663217,1726859433654,-150.0,0.0001337,2]
[338663218,1726859433663,-150.0,0.0001337,2]
[338663219,1726859433672,-150.0,0.0001337,2]
[338663220,1726859433681,-428.14,0.0001337,2]
[338663221,1726859433690,-150.0,0.0001337,2]
[338663222,1726859433700,-150.0,0.0001337,2]
[338663223,1726859433709,-150.0,0.0001337,2]
[338663224,1726859433721,-357.98,0.0001337,2]
[338663225,1726859433731,-428.14,0.0001337,2]
[338663226,1726859433740,-150.0,0.0001337,2]
[338663227,1726859433750,-150.0,0.0001337,2]
[338663228,1726859433760,-150.0,0.0001337,2]
[338663229,1726859433769,-250.7,0.0001337,2]
[338663230,1726859433779,-428.14,0.0001337,2]
[338663231,1726859433788,-150.0,0.0001337,2]
[338663232,1726859433800,-150.0,0.0001337,2]
[338663233,1726859433810,-150.0,0.0001337,2]
[338663234,1726859433819,-150.0,0.0001337,2]
[338663235,1726859433828,-425.24,0.0001337,2]
[338663236,1726859433837,-150.0,0.0001337,2]
[338663237,1726859433846,-150.0,0.0001337,2]
[338663238,1726859433855,-150.0,0.0001337,2]
[338663239,1726859433864,-151.0,0.00013383,2]
[338663240,1726859433874,-150.0,0.00013404,2]
[338663241,1726859433884,-150.0,0.00013404,2]
[338663242,1726859433901,-150.0,0.00013468,2]
[338663243,1726859433911,-15286.67,0.0001354,2]
[338663244,1726859433920,-150.0,0.00013561,2]
[338663245,1726859433930,-150.75966,0.00013561,2]
[338663246,1726859433939,-272.3,0.00013572,2]
[338663247,1726859433948,-6538.58494627,0.00013591,2]
[338663248,1726859433958,-174.02747408,0.00013597,2]
[338663249,1726859433967,-199.0,0.000136,2]
[338663250,1726859433977,-240.247971,0.000136,2]
[338663251,1726859433986,-206.8351,0.0001363,2]
[338663252,1726859433995,-150.0,0.00013639,2]
[338663253,1726859434004,-500.0,0.00013673,2]
[338663254,1726859434013,-9109.8521024,0.00013691,2]
[338663255,1726859434023,-26220.1266975,0.00013691,2]
[338663256,1726859434032,-96069.6384261,0.00013691,2]
[338663257,1726859434041,-380.6131048,0.00013691,2]
[338663258,1726859434051,-60087.3042786,0.00013691,2]
[338663259,1726859434060,-1724.24887645,0.00013697,2]
[338663260,1726859434069,-2000.0,0.00013698,2]
[338663261,1726859434079,-200.0,0.00013698,2]
[338663262,1726859434088,-2000.0,0.00013698,2]
[338663263,1726859434098,-200.0,0.00013698,2]
[338663264,1726859434107,-2000.0,0.00013698,2]
[338663265,1726859434116,-200.0,0.00013698,2]
[338663266,1726859434126,-900.15868864,0.00013698,2]
[338663267,1726859434136,-200.0,0.00013698,2]
[338663268,1726859434147,-500.0,0.00013699,2]
[338663269,1726859434157,-500.0,0.00013699,2]
[338663270,1726859434166,-500.0,0.00013699,2]
[338663271,1726859434175,-500.0,0.00013699,2]
[338663272,1726859434184,-500.0,0.00013699,2]
[338663273,1726859434193,-2000.0,0.00013699,2]
[338663274,1726859434202,-2000.0,0.00013699,2]
[338663275,1726859434212,-2000.0,0.00013699,2]
[338663276,1726859434221,-2000.0,0.00013699,2]
[338663277,1726859434230,-2000.0,0.00013699,2]
[338663278,1726859434239,-2000.0,0.00013699,2]
[338663279,1726859434248,-2000.0,0.00013699,2]
[338663280,1726859434257,-2000.0,0.00013699,2]
[338663281,1726859434267,-2000.0,0.00013699,2]
[338663282,1726859434276,-2000.0,0.00013699,2]
[338663283,1726859434286,-500.0,0.00013699,2]
[338663284,1726859434295,-500.0,0.00013699,2]
[338663285,1726859434305,-500.0,0.00013699,2]
[338663286,1726859434314,-500.0,0.00013699,2]
[338663287,1726859434325,-500.0,0.00013699,2]
[338663288,1726859434335,-500.0,0.00013699,2]
[338663289,1726859434345,-500.0,0.00013699,2]
[338663290,1726859434355,-500.0,0.00013699,2]
[338663291,1726859434365,-500.0,0.00013699,2]
[338663292,1726859434375,-331.17502661,0.00013699,2]
[338663293,1726859434384,-501.37869726,0.00013699,2]
[338663294,1726859434396,-800.0,0.00013699,2]
[338663295,1726859434406,-800.0,0.00013699,2]
[338663296,1726859434416,-800.0,0.00013699,2]
[338663297,1726859434426,-800.0,0.00013699,2]
[338663298,1726859434435,-800.0,0.00013699,2]
[338663299,1726859434445,-800.0,0.00013699,2]
[338663300,1726859434455,-800.0,0.00013699,2]
[338663301,1726859434464,-800.0,0.00013699,2]
[338663302,1726859434475,-800.0,0.00013699,2]
[338663303,1726859434484,-800.0,0.00013699,2]
[338663304,1726859434494,-3376.04,0.00013699,2]
[338663305,1726859434503,-800.0,0.00013699,2]
[338663306,1726859434513,-150.0,0.00013699,2]
[338663307,1726859434522,-800.0,0.00013699,2]
[338663308,1726859434531,-65865.94,0.00013699,2]
[338663309,1726859434541,-800.0,0.00013699,2]
[338663310,1726859434550,-200.0,0.00013699,2]
[338663311,1726859434560,-800.0,0.00013699,2]
[338663312,1726859434570,-800.0,0.00013699,2]
[338663313,1726859434579,-499.29,0.00013699,2]
[338663314,1726859434589,-2226.46,0.00013699,2]
[338663315,1726859434599,-3226.5,0.00013699,2]
[338663316,1726859434608,-500.0,0.00013699,2]
[338663317,1726859434617,-2751.0,0.00013699,2]
[338663318,1726859434627,-1250.0,0.000137,2]
[338663319,1726859434637,-170.50854913,0.000137,2]
[338663320,1726859434647,-900.8514,0.000137,2]
[338663321,1726859434657,-194.81301122,0.000137,2]
[338663322,1726859434666,-568.1839,0.000137,2]
[338663323,1726859434676,-6538.58494626,0.00013724,2]
[338663324,1726859434686,-174.02747403,0.00013726,2]
[338663325,1726859434695,-824.0,0.00013761,2]
[338663326,1726859434705,-500.0,0.00013773,2]
[338663327,1726859434719,-163.60303955,0.00013773,2]
[338663328,1726859434728,-500.0,0.00013773,2]
[338663329,1726859434738,-600.0,0.00013784,2]
[338663330,1726859434747,-260.76,0.00013788,2]
[338663331,1726859434757,-377.22043977,0.0001379,2]
[338663332,1726859434766,-153.11,0.0001379,2]
[338663333,1726859434775,-212.72150978,0.00013799,2]
[338663334,1726859434785,-500.0,0.00013799,2]
[338663335,1726859434796,-500.0,0.00013799,2]
[338663336,1726859434806,-500.0,0.00013799,2]
[338663337,1726859434815,-500.0,0.00013799,2]
[338663338,1726859434824,-304.31536698,0.00013799,2]
[338663339,1726859434834,-151.0,0.000138,2]
[338663340,1726859434843,-277.905495,0.000138,2]
[338663341,1726859434852,-215.260413,0.000138,2]
[338663342,1726859434862,-215.260413,0.000138,2]
[338663343,1726859434871,-183.167647,0.000138,2]
[338663344,1726859434881,-183.167647,0.000138,2]
[338663345,1726859434892,-151.0,0.000138,2]
[338663346,1726859434903,-155.706829,0.000138,2]
[338663347,1726859434912,-155.706829,0.000138,2]
[338663348,1726859434921,-13386.0,0.000138,2]
[338663349,1726859434930,-151.0,0.000138,2]
[338663350,1726859434940,-212919.0,0.000138,2]
[338663351,1726859434950,-151.0,0.000138,2]
[338663352,1726859434959,-239.206127,0.000138,2]
[338663353,1726859434968,-231.591105,0.000138,2]
[338663354,1726859434978,-231.591105,0.000138,2]
[338663355,1726859434987,-231.591105,0.000138,2]
[338663356,1726859434997,-231.591105,0.000138,2]
[338663357,1726859435007,-285.184781,0.000138,2]
[338663358,1726859435017,-285.184781,0.000138,2]
[338663359,1726859435026,-285.184781,0.000138,2]
[338663360,1726859435036,-285.184781,0.000138,2]
[338663361,1726859435046,-644.357955,0.000138,2]
[338663362,1726859435056,-644.357955,0.000138,2]
[338663363,1726859435066,-644.357955,0.000138,2]
[338663364,1726859435076,-644.357955,0.000138,2]
[338663365,1726859435086,-211.4,0.000138,2]
[338663366,1726859435095,-211.4,0.000138,2]
[338663367,1726859435105,-211.4,0.000138,2]
[338663368,1726859435115,-211.4,0.000138,2]
[338663369,1726859435124,-158.852,0.000138,2]
[338663370,1726859435134,-158.852,0.000138,2]
[338663371,1726859435144,-158.852,0.000138,2]
[338663372,1726859435154,-158.852,0.000138,2]
[338663373,1726859435164,-151.0,0.000138,2]
[338663374,1726859435173,-151.0,0.000138,2]
[338663375,1726859435182,-439.46815893,0.000138,2]
[338663376,1726859435191,-7412.77,0.000138,2]
[338663377,1726859435200,-1067.00495348,0.000138,2]
[338663378,1726859435209,-156.2770892,0.00013804,2]
[338663379,1726859435219,-400.0,0.00013808,2]
[338663380,1726859435228,-2000.0,0.00013821,2]
[338663381,1726859435238,-2000.0,0.00013835,2]
[338663382,1726859435248,-200.0,0.00013835,2]
[338663383,1726859435258,-2000.0,0.00013835,2]
[338663384,1726859435269,-200.0,0.00013835,2]
[338663385,1726859435279,-2000.0,0.00013835,2]
[338663386,1726859435288,-200.0,0.00013835,2]
[338663387,1726859435298,-200.0,0.00013835,2]
[338663388,1726859435309,-174.02747403,0.00013855,2]
[338663389,1726859435318,-6538.58494626,0.00013857,2]
[338663390,1726859435327,-150.0,0.00013874,2]
[338663391,1726859435337,-8220.98258262,0.0001389,7]
[338663392,1726859435346,-153.11,0.0001389,2]
[338663393,1726859435355,-569.2942,0.00013899,2]
[338663394,1726859435365,-6566.75120574,0.000139,2]
[338663395,1726859435375,-151.0,0.000139,2]
[338663396,1726859435387,-215.260413,0.000139,2]
[338663397,1726859435397,-215.260413,0.000139,2]
[338663398,1726859435407,-183.167647,0.000139,2]
[338663399,1726859435416,-183.167647,0.000139,2]
[338663400,1726859435425,-151.0,0.000139,2]
[338663401,1726859435434,-155.706829,0.000139,2]
[338663402,1726859435443,-155.706829,0.000139,2]
[338663403,1726859435452,-151.0,0.000139,2]
[338663404,1726859435461,-151.0,0.000139,2]
[338663405,1726859435471,-231.591105,0.000139,2]
[338663406,1726859435479,-231.591105,0.000139,2]
[338663407,1726859435489,-285.184781,0.000139,2]
[338663408,1726859435498,-285.184781,0.000139,2]
[338663409,1726859435507,-644.357955,0.000139,2]
[338663410,1726859435517,-644.357955,0.000139,2]
[338663411,1726859435526,-211.4,0.000139,2]
[338663412,1726859435536,-211.4,0.000139,2]
[338663413,1726859435545,-158.852,0.000139,2]
[338663414,1726859435555,-158.852,0.000139,2]
[338663415,1726859435565,-151.0,0.000139,2]
[338663416,1726859435574,-610688.855353,0.000139,3]
[338663417,1726859435584,-54780.24553798,0.000139,2]
[338663418,1726859435593,-500.0,0.00013904,2]
[338663419,1726859435603,-500.0,0.00013904,2]
[338663420,1726859435612,-500.0,0.00013904,2]
[338663421,1726859435622,-3567.9,0.00013934,7]
[338663422,1726859435632,-3567.9,0.00013934,7]
[338663423,1726859435644,-531.0,0.0001394,2]
[338663424,1726859435654,-2000.0,0.00013973,2]
[338663425,1726859435663,-200.0,0.00013973,2]
[338663426,1726859435672,-2000.0,0.00013973,2]
[338663427,1726859435682,-200.0,0.00013973,2]
[338663428,1726859435692,-2000.0,0.00013973,2]
[338663429,1726859435701,-200.0,0.00013973,2]
[338663430,1726859435712,-200.0,0.00013973,2]
[338663431,1726859435726,-174.02747403,0.00013984,2]
[338663432,1726859435735,-6538.58494626,0.0001399,2]
[338663433,1726859435745,-12711.70381873,0.00014,2]
[338663434,1726859435755,-290.7968813,0.00014,4]
[338663435,1726859435764,-267.85618464,0.00014,2]
[338663436,1726859435773,-201.0898041,0.00014,4]
[338663437,1726859435783,-1000.89505278,0.00014,5]
[338663438,1726859435793,-12114.16710969,0.00014,2]
[338663439,1726859435803,-5000.0,0.00014,2]
[338663440,1726859435812,-526.55524002,0.00014,2]
[338663441,1726859435821,-35045.39495599,0.00014,2]
[338663442,1726859435831,-173.0,0.00014,2]
[338663443,1726859435840,-214.49396571,0.00014,2]
[338663444,1726859435850,-39678.0,0.00014,14]
[338663445,1726859435859,-272.3,0.00014052,2]
[338663446,1726859435869,-422.74,0.00014055,2]
[338663447,1726859435878,-1505.34,0.00014055,2]
[338663448,1726859435888,-422.74,0.00014055,2]
[338663449,1726859435898,-189.25,0.00014055,2]
[338663450,1726859435908,-150.0,0.00014059,2]
[338663451,1726859435917,-194.81301122,0.000141,2]
[338663452,1726859435926,-299.17704059,0.0001411,2]
[338663453,1726859435935,-242.45825038,0.0001411,2]
[338663454,1726859435944,-184.20907282,0.0001411,2]
[338663455,1726859435953,-2000.0,0.00014113,2]
[338663456,1726859435963,-200.0,0.00014113,2]
[338663457,1726859435972,-2000.0,0.00014113,2]
[338663458,1726859435982,-200.0,0.00014113,2]
[338663459,1726859435991,-2000.0,0.00014113,2]
[338663460,1726859436000,-200.0,0.00014113,2]
[338663461,1726859436009,-174.02747403,0.00014113,2]
[338663462,1726859436018,-200.0,0.00014113,2]
[338663463,1726859436028,-6538.58494626,0.00014123,2]
[338663464,1726859436037,-600.0,0.00014161,2]
[338663465,1726859436047,-600.0,0.00014162,2]
[338663466,1726859436060,-600.0,0.00014162,2]
[338663467,1726859436069,-600.0,0.00014162,2]
[338663468,1726859436079,-600.0,0.00014162,2]
[338663469,1726859436088,-600.0,0.00014162,2]
[338663470,1726859436098,-153.64,0.00014192,2]
[338663471,1726859436107,-300.0,0.00014192,2]
[338663472,1726859436117,-150.0,0.00014192,2]
[338663473,1726859436126,-999.84,0.000142,2]
[338663474,1726859436135,-3567.9,0.00014208,7]
[338663475,1726859436146,-3567.9,0.00014208,7]
[338663476,1726859436155,-155.0,0.0001424,2]
[338663477,1726859436164,-600.0,0.00014241,2]
[338663478,1726859436174,-174.02747403,0.00014242,2]
[338663479,1726859436183,-738.904325,0.00014247,2]
[338663480,1726859436192,-11011.24971003,0.0001425,5]
[338663481,1726859436202,-600.0,0.0001425,2]
[338663482,1726859436211,-600.0,0.0001425,2]